bitfinex-derivatives/quotes_BNBF0:USTF0_20250316
["timestamp","ask_amount","ask_price","bid_price","bid_amount"]
[1742146527924,0.27967584,605.2,603.72,0.30414481]
[1742146528126,0.27967584,605.19,603.72,0.30414481]
[1742146528328,0.27967584,605.2,603.72,0.30414481]
[1742146528528,0.27967584,605.18,603.73,0.33127391]
[1742146528828,0.27967584,605.17,603.74,0.30414481]
[1742146529023,0.27967584,605.2,603.75,0.33126293]
[1742146529329,0.27967584,605.19,603.76,0.30414481]
[1742146529630,0.27967584,605.18,603.77,0.33125196]
[1742146529830,0.27967584,605.2,603.77,0.33125196]
[1742146530031,0.27967584,605.19,603.78,0.30414481]
[1742146530330,0.27967584,605.18,603.78,0.30414481]
[1742146530530,0.27967584,605.2,603.78,0.30414481]
[1742146530733,0.27967584,605.19,603.78,0.30414481]
[1742146531029,0.27967584,605.18,603.78,0.30414481]
[1742146531231,0.27967584,605.2,603.79,0.33124099]
[1742146531430,0.27967584,605.2,603.8,0.30414481]
[1742146531629,0.27967584,605.2,603.81,0.33123002]
[1742146532430,0.27967584,605.2,603.82,0.30409731]
[1742146532929,0.27967584,605.2,603.83,0.33121905]
[1742146533724,0.33047472,605.19,603.83,0.33121905]
[1742146533928,0.27967584,605.18,603.83,0.33121905]
[1742146534128,0.27967584,605.17,603.83,0.33121905]
[1742146534329,0.27967584,605.16,603.83,0.33121905]
[1742146534531,0.27967584,605.18,603.83,0.33121905]
[1742146534732,0.27967584,605.17,603.83,0.33121905]
[1742146534930,0.27967584,605.16,603.83,0.33121905]
[1742146535233,0.27967584,605.15,603.83,0.33121905]
[1742146535424,0.27967584,605.14,603.83,0.33121905]
[1742146535725,0.27967584,605.13,603.83,0.33121905]
[1742146535931,0.27967584,605.12,603.83,0.33121905]
[1742146536130,0.27967584,605.18,603.83,0.33121905]
[1742146536331,0.27966916,605.17,603.83,0.33121905]
[1742146536523,0.27966916,605.18,603.83,0.33121905]
[1742146537735,0.33047472,605.19,603.83,0.33121905]
[1742146537932,0.27966101,605.18,603.83,0.33121905]
[1742146539731,0.27966001,605.17,603.83,0.33121905]
[1742146539929,0.27966001,605.18,603.83,0.33121905]
[1742146543333,0.27966001,605.18,603.84,0.3040728]
[1742146543537,0.27966001,605.18,603.85,0.33120808]
[1742146543833,0.27966001,605.18,603.86,0.30407148]
[1742146544338,0.27966001,605.18,603.85,0.33120808]
[1742146544929,0.33047472,605.19,603.85,0.33120808]
[1742146545136,0.27960546,605.18,603.86,0.30407308]
[1742146545332,0.27960546,605.18,603.87,0.33119711]
[1742146546635,0.27960546,605.18,603.88,0.30404883]
[1742146546838,0.27960546,605.18,603.89,0.33118614]
[1742146547938,0.27960546,605.18,603.9,0.558]
[1742146548134,0.27960546,605.18,603.91,0.33117517]
[1742146549434,0.33048564,605.17,603.91,0.33117517]
[1742146549633,0.27960546,605.16,603.91,0.33117517]
[1742146549941,0.27960546,605.15,603.91,0.33117517]
[1742146550139,0.27960546,605.14,603.91,0.33117517]
[1742146550341,0.27960546,605.13,603.91,0.33117517]
[1742146550535,0.27960546,605.12,603.91,0.33117517]
[1742146550840,0.61012387,605.11,603.91,0.33117517]
[1742146551039,0.61012934,605.1,603.91,0.33117517]
[1742146551239,0.27960546,605.09,603.91,0.33117517]
[1742146559838,0.33052388,605.1,603.91,0.33117517]
[1742146560147,0.27968983,605.09,603.91,0.33117517]
[1742146560848,0.27968983,605.08,603.91,0.33117517]
[1742146561149,0.33052388,605.1,603.91,0.33117517]
[1742146561340,0.27968029,605.09,603.91,0.33117517]
[1742146561845,0.33052388,605.1,603.91,0.33117517]
[1742146561846,0.27968029,605.08,603.91,0.33117517]
[1742146562038,0.27968029,605.09,603.91,0.33117517]
[1742146562244,0.27968029,605.08,603.91,0.33117517]
[1742146562443,0.27968029,605.09,603.91,0.33117517]
[1742146562751,0.27968029,605.08,603.91,0.33117517]
[1742146562947,0.27968029,605.09,603.91,0.33117517]
[1742146563142,0.27968029,605.08,603.91,0.33117517]
[1742146563348,0.27968029,605.09,603.91,0.33117517]
[1742146563647,0.27968029,605.08,603.91,0.33117517]
[1742146563850,0.27968029,605.07,603.91,0.33117517]
[1742146564049,0.27968029,605.06,603.91,0.33117517]
[1742146564248,0.27968029,605.05,603.91,0.33117517]
[1742146564449,0.27968029,605.04,603.91,0.33117517]
[1742146564650,0.27968029,605.03,603.91,0.33117517]
[1742146564852,0.27968029,605.02,603.91,0.33117517]
[1742146565150,0.27968029,605.01,603.91,0.33117517]
[1742146565352,0.27968029,605.0,603.91,0.33117517]
[1742146565552,0.27968029,604.99,603.91,0.33117517]
[1742146565851,0.27968029,604.98,603.91,0.33117517]
[1742146566052,0.27968029,604.97,603.91,0.33117517]
[1742146566253,0.27968029,604.96,603.91,0.33117517]
[1742146566453,0.27968029,604.95,603.91,0.33117517]
[1742146566753,0.27968029,604.94,603.91,0.33117517]
[1742146566947,0.27968029,604.93,603.91,0.33117517]
[1742146567151,0.27968029,604.92,603.91,0.33117517]
[1742146567352,0.27968029,604.91,603.91,0.33117517]
[1742146567653,0.27968029,604.9,603.91,0.33117517]
[1742146567855,0.27968029,604.89,603.91,0.33117517]
[1742146568054,0.27968029,604.88,603.91,0.33117517]
[1742146568252,0.27968029,604.94,603.91,0.33117517]
[1742146568454,0.27968029,604.93,603.91,0.33117517]
[1742146568653,0.27968029,604.92,603.91,0.33117517]
[1742146568858,0.27968029,604.91,603.91,0.33117517]
[1742146569158,0.27968029,604.9,603.91,0.33117517]
[1742146569357,0.27968029,604.92,603.91,0.33117517]
[1742146569557,0.27968029,604.91,603.91,0.33117517]
[1742146569759,0.27968029,604.9,603.91,0.33117517]
[1742146569952,0.27968029,604.89,603.91,0.33117517]
[1742146570260,0.27968029,604.88,603.91,0.33117517]
[1742146570458,0.27968029,604.92,603.91,0.33117517]
[1742146570653,0.27968029,604.91,603.91,0.33117517]
[1742146570856,0.27968029,604.9,603.91,0.33117517]
[1742146571055,0.27968029,604.89,603.91,0.33117517]
[1742146571457,3.45445941,604.91,603.91,0.33117517]
[1742146571654,0.27943261,604.9,603.91,0.33117517]
[1742146571852,0.27943261,604.89,603.91,0.33117517]
[1742146572054,0.27943261,604.9,603.91,0.33117517]
[1742146572260,0.27942889,604.89,603.91,0.33117517]
[1742146572453,0.27942889,604.88,603.91,0.33117517]
[1742146572651,3.45445941,604.91,603.91,0.33117517]
[1742146572652,2.96819899,604.9,603.91,0.33117517]
[1742146572857,3.7338883,604.89,603.91,0.33117517]
[1742146573055,0.27942889,604.88,603.91,0.33117517]
[1742146573859,0.27942889,604.87,603.91,0.33117517]
[1742146574056,0.27942889,604.89,603.91,0.33117517]
[1742146574252,0.27942889,604.88,603.91,0.33117517]
[1742146574457,0.27942889,604.98,603.91,0.33117517]
[1742146574662,0.3305949,604.97,603.91,0.33117517]
[1742146574859,0.27942889,604.96,603.91,0.33117517]
[1742146579564,0.27931241,604.95,603.91,0.33117517]
[1742146579763,0.27931241,604.96,603.91,0.33117517]
[1742146580057,0.27931241,604.95,603.91,0.33117517]
[1742146580262,0.27931241,604.96,603.91,0.33117517]
[1742146580468,0.27931241,604.95,603.91,0.33117517]
[1742146580657,0.27931241,604.96,603.91,0.33117517]
[1742146580862,0.27931241,604.95,603.91,0.33117517]
[1742146581059,0.27931241,604.96,603.91,0.33117517]
[1742146581262,0.27929424,604.95,603.91,0.33117517]
[1742146581658,0.27929424,604.94,603.91,0.33117517]
[1742146581864,0.27929424,604.96,603.91,0.33117517]
[1742146582163,0.27929293,604.95,603.91,0.33117517]
[1742146582362,0.27929293,604.96,603.91,0.33117517]
[1742146582663,0.27929293,604.95,603.91,0.33117517]
[1742146582863,0.3305949,604.97,603.91,0.33117517]
[1742146582864,0.27929293,604.96,603.91,0.33117517]
[1742146583063,0.27929293,604.94,603.91,0.33117517]
[1742146583263,0.27929293,604.93,603.91,0.33117517]
[1742146583461,0.27929293,604.96,603.91,0.33117517]
[1742146583657,0.27929293,604.95,603.91,0.33117517]
[1742146583859,0.27929293,604.96,603.91,0.33117517]
[1742146584057,0.27929293,604.95,603.91,0.33117517]
[1742146584261,0.27929293,604.96,603.91,0.33117517]
[1742146584461,0.27929293,604.95,603.91,0.33117517]
[1742146584656,0.27929293,604.96,603.91,0.33117517]
[1742146584859,0.27929293,604.95,603.91,0.33117517]
[1742146585264,0.27929293,604.94,603.91,0.33117517]
[1742146585465,0.27929293,604.96,603.91,0.33117517]
[1742146585766,0.27929293,604.95,603.91,0.33117517]
[1742146585959,0.27929293,604.94,603.91,0.33117517]
[1742146586164,0.27929293,604.93,603.91,0.33117517]
[1742146586464,0.27929293,604.92,603.91,0.33117517]
[1742146586659,0.27929293,604.96,603.91,0.33117517]
[1742146586864,0.27929293,604.95,603.91,0.33117517]
[1742146587066,0.27929293,604.94,603.91,0.33117517]
[1742146587363,0.27929293,604.93,603.91,0.33117517]
[1742146587563,0.27929293,604.96,603.91,0.33117517]
[1742146587763,0.27929293,604.95,603.91,0.33117517]
[1742146587966,0.27929293,604.96,603.91,0.33117517]
[1742146588159,0.27929293,604.95,603.91,0.33117517]
[1742146588361,0.3305949,604.97,603.91,0.33117517]
[1742146588362,0.27929293,604.96,603.91,0.33117517]
[1742146588562,0.27907189,604.95,603.91,0.33117517]
[1742146588762,0.27907189,604.96,603.91,0.33117517]
[1742146588964,0.27907189,604.95,603.91,0.33117517]
[1742146589159,0.27907189,604.96,603.91,0.33117517]
[1742146589364,0.27907189,604.95,603.91,0.33117517]
[1742146589568,0.27907189,604.96,603.91,0.33117517]
[1742146589765,0.27907189,604.95,603.91,0.33117517]
[1742146590069,0.27907189,604.94,603.91,0.33117517]
[1742146590366,0.27907189,604.93,603.91,0.33117517]
[1742146590767,0.27907189,604.96,603.91,0.33117517]
[1742146590967,0.3305949,604.97,603.91,0.33117517]
[1742146591167,0.27909185,604.96,603.91,0.33117517]
[1742146592171,0.3305949,604.97,603.91,0.33117517]
[1742146592361,0.27911376,604.95,603.91,0.33117517]
[1742146592561,0.27911376,604.94,603.91,0.33117517]
[1742146592764,0.27911376,604.93,603.91,0.33117517]
[1742146593060,0.27911376,604.92,603.91,0.33117517]
[1742146593260,0.27911376,604.91,603.91,0.33117517]
[1742146593462,0.27911376,604.9,603.91,0.33117517]
[1742146593662,0.27911376,604.96,603.91,1.08617517]
[1742146593864,0.27911376,604.95,603.91,1.08617517]
[1742146594066,0.3305949,604.97,603.91,1.08617517]
[1742146594270,0.27910586,604.96,603.91,1.08617517]
[1742146597465,0.3305949,604.97,603.91,1.08617517]
[1742146597667,0.27902262,604.96,603.91,1.08617517]
[1742146598366,0.3305949,604.97,603.91,1.08617517]
[1742146599274,0.27904083,604.96,603.91,1.08617517]
[1742146599669,0.27903609,604.95,603.91,1.08617517]
[1742146599875,0.27903609,604.96,603.91,1.08617517]
[1742146601371,0.3305949,604.97,603.91,1.08617517]
[1742146601579,0.27900962,604.96,603.91,1.08617517]
[1742146608682,0.3305949,604.97,603.91,1.08617517]
[1742146608879,0.2790837,604.96,603.91,1.08617517]
[1742146624796,0.27886492,604.95,603.91,1.08617517]
[1742146624998,0.27886492,604.96,603.91,1.08617517]
[1742146625197,0.27886492,604.95,603.91,1.08617517]
[1742146625397,0.27886492,604.96,603.91,1.08617517]
[1742146625598,0.27886492,604.95,603.91,1.08617517]
[1742146625797,0.27886492,604.94,603.91,1.08617517]
[1742146625998,0.3305949,604.97,603.91,1.08617517]
[1742146625999,0.27886492,604.93,603.91,1.08617517]
[1742146626294,0.27886492,604.92,603.91,1.08617517]
[1742146626499,0.27886492,604.96,603.91,1.08617517]
[1742146626699,0.27886492,604.95,603.91,1.08617517]
[1742146626901,0.27886492,604.96,603.91,1.08617517]
[1742146627099,0.27886492,604.95,603.91,1.08617517]
[1742146627300,0.27886492,604.96,603.91,1.08617517]
[1742146637206,0.27886492,604.95,603.91,1.08617517]
[1742146637508,0.27886492,604.94,603.91,1.08617517]
[1742146637709,0.27886492,605.29,603.91,1.08617517]
[1742146637907,0.27886492,605.28,603.91,1.08617517]
[1742146638112,0.27886492,605.29,603.91,1.08617517]
[1742146638309,0.27886492,605.28,603.91,1.08617517]
[1742146638610,0.27886492,605.27,603.91,1.08617517]
[1742146638808,0.27886492,605.3,603.91,1.08617517]
[1742146639009,0.27886492,605.29,603.91,1.08617517]
[1742146639204,0.27886492,605.3,603.91,1.08617517]
[1742146640014,3.74138564,605.4,603.91,1.08617517]
[1742146640209,0.60923046,605.39,603.91,1.08617517]
[1742146640412,0.27886492,605.38,603.91,1.08617517]
[1742146640612,0.27886492,605.37,603.91,1.08617517]
[1742146640809,0.27886492,605.36,603.91,1.08617517]
[1742146641008,0.27886492,605.38,603.91,1.08617517]
[1742146641208,0.27886492,605.37,603.91,1.08617517]
[1742146641413,0.27919759,605.36,603.91,1.08617517]
[1742146641715,0.27919759,605.35,603.91,1.08617517]
[1742146642014,0.27919759,605.34,603.91,1.08617517]
[1742146642216,0.27919759,605.37,603.91,1.08617517]
[1742146642511,0.27919759,605.36,603.91,1.08617517]
[1742146642718,0.27919759,605.37,603.91,1.08617517]
[1742146643117,2.9591486,605.37,603.91,1.08617517]
[1742146643317,0.27919759,605.36,603.91,1.08617517]
[1742146645219,0.27919759,605.38,603.91,1.08617517]
[1742146645519,0.27919759,605.37,603.91,1.08617517]
[1742146645718,0.27919759,605.38,603.91,1.08617517]
[1742146646217,0.27919759,605.37,603.91,1.08617517]
[1742146646418,0.27919759,605.38,603.91,1.08617517]
[1742146646620,0.27919759,605.37,603.91,1.08617517]
[1742146646819,0.27927963,605.36,603.91,1.08617517]
[1742146647015,0.27927963,605.35,603.91,1.08617517]
[1742146647418,0.27927963,605.38,603.91,1.08617517]
[1742146647618,0.33036554,605.39,603.91,1.08617517]
[1742146647619,0.27927963,605.37,603.91,1.08617517]
[1742146647818,0.27927963,605.36,603.91,1.08617517]
[1742146648024,0.33036554,605.39,603.91,1.08617517]
[1742146648025,0.27927963,605.35,603.91,1.08617517]
[1742146648219,0.27927963,605.34,603.91,1.08617517]
[1742146648420,0.27927963,605.33,603.91,1.08617517]
[1742146648723,0.27927963,605.32,603.91,1.08617517]
[1742146648914,0.33036554,605.39,603.91,1.08617517]
[1742146648915,0.60968884,605.31,603.91,1.08617517]
[1742146649115,0.27927963,605.3,603.91,1.08617517]
[1742146649321,0.60969975,605.29,603.91,1.08617517]
[1742146649621,0.27927963,605.28,603.91,1.08617517]
[1742146649821,0.27927963,605.27,603.91,1.08617517]
[1742146650017,0.27927963,605.26,603.91,1.08617517]
[1742146650217,0.27927963,605.25,603.91,1.08617517]
[1742146650417,0.27924628,605.24,603.91,1.08617517]
[1742146650620,0.27924628,605.23,603.91,1.08617517]
[1742146650818,0.27924628,605.22,603.91,1.08617517]
[1742146651016,0.27924628,605.21,603.91,1.08617517]
[1742146651223,0.27924628,605.2,603.91,1.08617517]
[1742146651423,0.27924628,605.19,603.91,1.08617517]
[1742146651619,0.27924628,605.18,603.91,1.08617517]
[1742146651823,0.27924628,605.17,603.91,1.08617517]
[1742146652020,0.27924628,605.28,603.91,1.08617517]
[1742146652221,0.27924628,605.27,603.91,1.08617517]
[1742146652419,0.27924628,605.26,603.91,1.08617517]
[1742146652625,0.27924628,605.25,603.91,1.08617517]
[1742146652825,0.27924628,605.24,603.91,1.08617517]
[1742146653025,0.27924628,605.23,603.91,1.08617517]
[1742146653221,0.27924628,605.22,603.91,1.08617517]
[1742146653425,0.27924628,605.21,603.91,1.08617517]
[1742146653625,0.27924628,605.2,603.91,1.08617517]
[1742146653927,0.27924628,605.19,603.91,1.08617517]
[1742146654226,0.27924628,605.28,603.91,1.08617517]
[1742146654420,0.27924628,605.18,603.91,1.08617517]
[1742146654624,0.27924628,605.17,603.91,1.08617517]
[1742146654827,0.27924628,605.28,603.91,1.08617517]
[1742146655025,0.27924628,605.27,603.91,1.08617517]
[1742146655226,0.27924628,605.28,603.91,1.08617517]
[1742146655419,0.27924628,605.27,603.91,1.08617517]
[1742146655623,0.27924628,605.28,603.91,1.08617517]
[1742146655825,0.27928615,605.27,603.91,1.08617517]
[1742146656025,0.27928615,605.28,603.91,1.08617517]
[1742146656222,0.27928615,605.27,603.91,1.08617517]
[1742146656419,0.27928615,605.26,603.91,1.08617517]
[1742146656625,0.27928615,605.25,603.91,1.08617517]
[1742146656924,0.27928615,605.24,603.91,1.08617517]
[1742146657325,0.27928615,605.23,603.91,1.08617517]
[1742146657520,0.27928615,605.28,603.91,1.08617517]
[1742146662526,0.27928615,605.27,603.91,1.08617517]
[1742146662726,0.27928615,605.26,603.91,1.08617517]
[1742146662929,0.27928615,605.25,603.91,1.08617517]
[1742146663125,0.27928615,605.28,603.91,1.08617517]
[1742146663326,0.27928615,605.27,603.91,1.08617517]
[1742146663733,0.27928615,605.26,603.91,1.08617517]
[1742146663928,0.27928615,605.28,603.91,1.08617517]
[1742146668440,0.60971719,605.27,603.91,1.08617517]
[1742146668641,0.60972265,605.26,603.91,1.08617517]
[1742146668841,0.60972811,605.25,603.91,1.08617517]
[1742146669042,0.60973357,605.24,603.91,1.08617517]
[1742146669344,0.27928615,605.23,603.91,1.08617517]
[1742146669544,0.33045834,605.22,603.91,1.08617517]
[1742146669747,0.27928615,605.21,603.91,1.08617517]
[1742146669944,0.33046926,605.2,603.91,1.08617517]
[1742146670140,0.27928615,605.19,603.91,1.08617517]
[1742146672344,0.2794443,605.18,603.91,1.08617517]
[1742146672544,0.2794443,605.17,603.91,1.08617517]
[1742146672746,0.2794443,605.19,603.91,1.08617517]
[1742146673045,0.27942263,605.18,603.91,1.08617517]
[1742146673246,0.27942263,605.19,603.91,1.08617517]
[1742146673441,0.27942263,605.18,603.91,1.08617517]
[1742146673647,0.27942263,605.17,603.91,1.08617517]
[1742146673945,0.27942263,605.16,603.91,1.08617517]
[1742146674146,0.27942263,605.19,603.91,1.08617517]
[1742146674347,0.27942263,605.18,603.91,1.08617517]
[1742146674542,0.27942263,605.17,603.91,1.08617517]
[1742146674741,0.27942263,605.16,603.91,1.08617517]
[1742146674941,0.27942263,605.15,603.91,1.08617517]
[1742146675148,0.27942263,605.19,603.91,1.08617517]
[1742146675345,0.27942263,605.18,603.91,1.08617517]
[1742146675542,0.27942263,605.17,603.91,1.08617517]
[1742146675743,0.27942263,605.16,603.91,1.08617517]
[1742146676046,0.27942263,605.15,603.91,1.08617517]
[1742146676346,0.27942263,605.14,603.91,1.08617517]
[1742146676547,5.18350815,605.19,603.91,1.08617517]
[1742146676842,0.27942263,605.13,603.91,1.08617517]
[1742146677047,0.27942263,605.12,603.91,1.08617517]
[1742146677248,0.27942263,605.18,603.91,1.08617517]
[1742146677443,0.27942263,605.17,603.91,1.08617517]
[1742146677642,0.27942263,605.16,603.91,1.08617517]
[1742146677842,0.27942263,605.15,603.91,1.08617517]
[1742146678148,0.27942263,605.14,603.91,1.08617517]
[1742146678348,0.27942263,605.17,603.91,1.08617517]
[1742146678549,0.27942263,605.16,603.91,1.08617517]
[1742146678747,0.27942263,605.15,603.91,1.08617517]
[1742146679051,0.27942263,605.14,603.91,1.08617517]
[1742146679249,0.27942263,605.16,603.91,1.08617517]
[1742146679446,0.27942263,605.15,603.91,1.08617517]
[1742146679647,0.27942263,605.16,603.91,1.08617517]
[1742146679850,0.27942263,605.19,603.91,1.08617517]
[1742146680048,0.60990281,605.18,603.91,1.08617517]
[1742146680250,0.27942263,605.17,603.91,1.08617517]
[1742146681551,0.61013481,605.16,603.91,1.08617517]
[1742146681753,0.27964371,605.15,603.91,1.08617517]
[1742146681945,0.33050203,605.14,603.91,1.08617517]
[1742146682451,0.27964371,605.13,603.91,1.08617517]
[1742146683250,0.33051295,605.12,603.91,1.08617517]
[1742146683446,0.27964371,605.11,603.91,1.08617517]
[1742146683651,0.33052388,605.1,603.91,1.08617517]
[1742146683852,0.27964371,605.09,603.91,1.08617517]
[1742146684053,0.27964371,605.08,603.91,1.08617517]
[1742146684253,0.27964371,605.07,603.91,1.08617517]
[1742146684648,0.27964371,605.06,603.91,1.08617517]
[1742146684852,0.27964371,605.05,603.91,1.08617517]
[1742146685048,0.27964371,605.09,603.91,1.08617517]
[1742146685248,0.27964371,605.08,603.91,1.08617517]
[1742146685451,0.27964371,605.09,603.91,1.08617517]
[1742146688152,0.33052388,605.1,603.91,1.08617517]
[1742146688358,0.27970276,605.09,603.91,1.08617517]
[1742146689055,0.33052388,605.1,603.91,1.08617517]
[1742146689257,0.27970434,605.09,603.91,1.08617517]
[1742146691960,0.33052388,605.1,603.91,1.08617517]
[1742146692155,0.27969746,605.09,603.91,1.08617517]
[1742146695662,0.33052388,605.1,603.91,1.08617517]
[1742146695962,0.27964208,605.09,603.91,1.08617517]
[1742146697362,0.33052388,605.1,603.91,1.08617517]
[1742146697555,0.27963194,605.09,603.91,1.08617517]
[1742146699058,0.33052388,605.1,603.91,1.08617517]
[1742146699258,0.2796316,605.09,603.91,1.08617517]
[1742146704167,0.2796316,605.08,603.91,1.08617517]
[1742146704362,0.2796316,605.09,603.91,1.08617517]
[1742146704570,0.2796316,605.08,603.91,1.08617517]
[1742146704768,0.33052388,605.1,603.91,1.08617517]
[1742146704769,0.2796316,605.09,603.91,1.08617517]
[1742146704970,0.2796316,605.08,603.91,1.08617517]
[1742146705169,0.2796316,605.09,603.91,1.08617517]
[1742146705365,0.2796316,605.07,603.91,1.08617517]
[1742146705570,0.33052388,605.1,603.91,1.08617517]
[1742146705571,0.2796316,605.06,603.91,1.08617517]
[1742146705871,0.2796316,605.05,603.91,1.08617517]
[1742146706068,0.2796316,605.09,603.91,1.08617517]
[1742146706372,0.2796316,605.08,603.91,1.08617517]
[1742146706568,0.2796316,605.09,603.91,1.08617517]
[1742146707566,0.2796316,605.08,603.91,1.08617517]
[1742146707767,0.2796316,605.09,603.91,1.08617517]
[1742146707966,0.2796316,605.08,603.91,1.08617517]
[1742146708169,0.33052388,605.1,603.91,1.08617517]
[1742146708371,0.2796525,605.09,603.91,1.08617517]
[1742146708565,0.2796525,605.08,603.91,1.08617517]
[1742146708971,0.2796525,605.07,603.91,1.08617517]
[1742146709171,0.2796525,605.09,603.91,1.08617517]
[1742146709371,0.2796525,605.08,603.91,1.08617517]
[1742146709675,0.2796525,605.07,603.91,1.08617517]
[1742146709871,0.2796525,605.06,603.91,1.08617517]
[1742146710069,0.2796525,605.05,603.91,1.08617517]
[1742146710271,0.2796525,605.04,603.91,1.08617517]
[1742146710466,0.2796525,605.03,603.91,1.08617517]
[1742146710771,0.2796525,605.02,603.91,1.08617517]
[1742146710973,0.2796525,605.09,603.91,1.08617517]
[1742146711173,0.2796525,605.08,603.91,1.08617517]
[1742146711373,0.33052388,605.1,603.91,1.08617517]
[1742146711374,0.2796525,605.07,603.91,1.08617517]
[1742146711574,0.2796525,605.06,603.91,1.08617517]
[1742146711775,0.2796525,605.05,603.91,1.08617517]
[1742146711979,0.2796525,605.04,603.91,1.08617517]
[1742146712176,0.2796525,605.03,603.91,1.08617517]
[1742146712377,1.71899726,605.08,603.91,1.08617517]
[1742146712875,0.2796525,605.07,603.91,1.08617517]
[1742146713376,0.2796525,605.06,603.91,1.08617517]
[1742146713576,0.2796525,605.05,603.91,1.08617517]
[1742146713771,0.2796525,605.04,603.91,1.08617517]
[1742146713976,0.2796525,605.03,603.91,1.08617517]
[1742146714179,0.2796525,605.06,603.91,1.08617517]
[1742146714473,0.2796525,605.05,603.91,1.08617517]
[1742146714677,0.2796525,605.04,603.91,1.08617517]
[1742146714981,0.2796525,605.03,603.91,1.08617517]
[1742146715173,3.74906916,605.05,603.91,1.08617517]
[1742146715478,0.2796525,605.04,603.91,1.08617517]
[1742146715672,0.2796525,605.03,603.91,1.08617517]
[1742146715871,0.2796525,605.04,603.91,1.08617517]
[1742146716078,0.2796525,605.03,603.91,1.08617517]
[1742146716471,3.74906916,605.03,603.91,1.08617517]
[1742146716671,0.2796525,605.02,603.91,1.08617517]
[1742146717177,2.68871108,605.04,603.91,1.08617517]
[1742146717378,0.27963753,605.03,603.91,1.08617517]
[1742146717778,0.27963753,605.09,603.91,1.08617517]
[1742146718080,0.27963753,605.08,603.91,1.08617517]
[1742146718280,0.27963753,605.09,603.91,1.08617517]
[1742146718480,0.27963753,605.08,603.91,1.08617517]
[1742146718779,0.27963753,605.07,603.91,1.08617517]
[1742146718977,0.27963753,605.09,603.91,1.08617517]
[1742146719174,0.27963753,605.08,603.91,1.08617517]
[1742146719379,0.27963753,605.09,603.91,1.08617517]
[1742146719583,0.27963753,605.08,603.91,1.08617517]
[1742146719774,0.27963753,605.09,603.91,1.08617517]
[1742146719977,0.27963753,605.08,603.91,1.08617517]
[1742146720175,0.27963753,605.09,603.91,1.08617517]
[1742146720375,0.27963753,605.08,603.91,1.08617517]
[1742146720681,0.33052388,605.1,603.91,1.08617517]
[1742146720682,0.27963753,605.07,603.91,1.08617517]
[1742146720883,0.27963753,605.09,603.91,1.08617517]
[1742146721080,0.33052388,605.1,603.91,1.08617517]
[1742146721281,0.27963137,605.09,603.91,1.08617517]
[1742146722881,0.33052388,605.1,603.91,1.08617517]
[1742146723181,0.27972548,605.09,603.91,1.08617517]
[1742146723484,0.61025482,605.09,603.91,1.08617517]
[1742146723679,0.27972548,605.08,603.91,1.08617517]
[1742146726383,0.27973416,605.07,603.91,1.08617517]
[1742146726583,0.27973416,605.08,603.91,1.08617517]
[1742146726784,0.27973416,605.07,603.91,1.08617517]
[1742146727083,0.27973416,605.08,603.91,1.08617517]
[1742146727283,0.27973416,605.07,603.91,1.08617517]
[1742146727484,0.27973416,605.08,603.91,1.08617517]
[1742146727685,0.27973416,605.07,603.91,1.08617517]
[1742146727884,0.27973416,605.08,603.91,1.08617517]
[1742146728084,0.27973416,605.07,603.91,1.08617517]
[1742146728286,0.27973416,605.08,603.91,1.08617517]
[1742146728586,0.27973416,605.07,603.91,1.08617517]
[1742146728783,0.27973416,605.08,603.91,1.08617517]
[1742146735393,0.33052934,605.09,603.91,1.08617517]
[1742146735698,0.27974164,605.08,603.91,1.08617517]
[1742146736498,0.61027644,605.08,603.91,1.08617517]
[1742146736698,0.3305348,605.08,603.91,1.08617517]
[1742146736898,0.27973841,605.07,603.91,1.08617517]
[1742146737393,0.3305348,605.08,603.91,1.08617517]
[1742146737604,0.27973861,605.07,603.91,1.08617517]
[1742146740500,0.27973861,605.06,603.91,1.08617517]
[1742146740700,0.27973861,605.05,603.91,1.08617517]
[1742146741003,0.2797472,605.04,603.91,1.08617517]
[1742146741196,0.2797472,605.03,603.91,1.08617517]
[1742146741394,0.2797472,605.02,603.91,1.08617517]
[1742146741592,0.2797472,605.01,603.91,1.08617517]
[1742146741793,0.2797472,605.0,603.91,1.08617517]
[1742146741997,0.2797472,605.07,603.91,1.08617517]
[1742146742201,0.2797472,605.06,603.91,1.08617517]
[1742146742595,0.2797472,605.05,603.91,1.08617517]
[1742146742799,0.2797472,605.07,603.91,1.08617517]
[1742146742999,0.2797472,605.06,603.91,1.08617517]
[1742146743200,0.2797472,605.07,603.91,1.08617517]
[1742146743405,0.2797472,605.05,603.91,1.08617517]
[1742146743598,0.61030385,605.04,603.91,1.08617517]
[1742146743796,0.2797472,605.03,603.91,1.08617517]
[1742146744202,0.2797472,605.02,603.91,1.08617517]
[1742146744596,0.33057304,605.01,603.91,1.08617517]
[1742146744803,0.27980396,605.0,603.91,1.08617517]
[1742146745004,0.27980396,604.99,603.91,1.08617517]
[1742146745199,0.27980396,604.98,603.91,1.08617517]
[1742146745401,0.27980396,604.97,603.91,1.08617517]
[1742146745604,0.27980396,604.96,603.91,1.08617517]
[1742146746004,0.27980396,604.95,603.91,1.08617517]
[1742146746206,0.27980396,604.94,603.91,1.08617517]
[1742146746405,0.27980396,604.93,603.91,1.08617517]
[1742146746605,0.27980396,604.92,603.91,1.08617517]
[1742146746804,0.27980396,604.99,603.91,1.08617517]